bitfinex/quotes_SOLUSD_20241103
["timestamp","ask_amount","ask_price","bid_price","bid_amount"]
[1730675701949,0.12549,162.57,162.51,6.4649166]
[1730675702243,11.62367807,162.55,162.52,1.96676476]
[1730675702448,6.27739,162.55,162.53,1.96676476]
[1730675702655,11.62367807,162.54,162.52,1.96676476]
[1730675702827,11.62367807,162.54,162.51,8.43168136]
[1730675703023,11.62367807,162.53,162.51,0.3182166]
[1730675703534,11.62367807,162.54,162.51,0.3182166]
[1730675704539,17.77627807,162.54,162.51,0.3182166]
[1730675704743,11.62367807,162.52,162.51,0.3182166]
[1730675705051,11.62367807,162.53,162.51,0.3182166]
[1730675705626,17.77627807,162.54,162.51,0.3182166]
[1730675707233,11.62367807,162.53,162.51,0.3182166]
[1730675707553,6.1526,162.54,162.51,0.3182166]
[1730675707554,17.77627807,162.54,162.51,0.3182166]
[1730675707722,6.1516,162.56,162.51,18.09529467]
[1730675707922,6.1512,162.57,162.52,11.62367807]
[1730675708343,11.74916807,162.56,162.51,0.3182166]
[1730675708545,11.62367807,162.55,162.51,0.3182166]
[1730675709250,6.1519,162.55,162.51,0.3182166]
[1730675709450,6.1519,162.55,162.51,11.94189467]
[1730675711135,6.1519,162.55,162.51,0.3182166]
[1730675711543,0.12549,162.56,162.51,33.47859467]
[1730675711855,11.62367807,162.58,162.52,11.62367807]
[1730675712068,11.62367807,162.57,162.51,33.47859467]
[1730675713359,11.62367807,162.53,162.51,0.3182166]
[1730675713650,6.1513,162.57,162.52,11.62367807]
[1730675714056,0.12549,162.56,162.52,11.62367807]
[1730675714251,0.12549,162.56,162.53,11.62367807]
[1730675714758,6.15,162.6,162.53,11.62367807]
[1730675714937,0.12549,162.58,162.53,11.62367807]
[1730675715135,11.62367807,162.56,162.52,6.153]
[1730675715355,11.62367807,162.57,162.52,6.153]
[1730675715940,11.62367807,162.57,162.52,17.77667807]
[1730675716139,6.27709,162.56,162.52,6.153]
[1730675716338,6.27709,162.56,162.51,33.47889467]
[1730675717758,11.62367807,162.59,162.53,11.62367807]
[1730675717963,1.06464784,162.62,162.51,21.8552166]
[1730675717964,1.06464784,162.62,162.58,11.62367807]
[1730675718258,17.77287807,162.63,162.57,11.62367807]
[1730675718959,6.1492,162.63,162.58,11.62367807]
[1730675719357,6.1492,162.63,162.56,15.4698]
[1730675719358,6.1492,162.63,162.59,11.62367807]
[1730675719657,6.1492,162.63,162.6,11.62367807]
[1730675720042,6.1483,162.65,162.62,11.62367807]
[1730675720648,6.1483,162.65,162.59,6.5015]
[1730675720649,6.1483,162.65,162.61,11.62367807]
[1730675721040,0.12549,162.66,162.61,11.62367807]
[1730675721238,6.27319,162.66,162.61,11.62367807]
[1730675721458,11.62367807,162.68,162.63,11.62367807]
[1730675721642,6.1462,162.7,162.65,11.62367807]
[1730675721960,6.1462,162.7,162.63,15.4698]
[1730675721961,6.1459,162.71,162.66,11.62367807]
[1730675722138,6.1459,162.71,162.67,11.62367807]
[1730675722335,0.12549,162.7,162.67,11.62367807]
[1730675722539,6.1455,162.72,162.68,11.62367807]
[1730675722847,0.12549,162.71,162.68,11.62367807]
[1730675724462,70.0,162.75,162.69,11.62367807]
[1730675724463,6.1451,162.73,162.69,11.62367807]
[1730675724662,17.76767807,162.76,162.7,11.62367807]
[1730675724963,85.8643,162.79,162.73,11.62367807]
[1730675724964,17.76647807,162.79,162.73,11.62367807]
[1730675725167,6.1428,162.79,162.74,11.62367807]
[1730675725458,17.76647807,162.79,162.73,11.62367807]
[1730675725637,11.74916807,162.78,162.72,11.62367807]
[1730675725839,11.74916807,162.73,162.7,15.7514]
[1730675726266,0.12549,162.73,162.7,15.7514]
[1730675726566,11.62367807,162.76,162.7,27.37507807]
[1730675726738,11.62367807,162.78,162.72,11.62367807]
[1730675726939,0.12549,162.77,162.72,11.62367807]
[1730675727342,6.144,162.76,162.72,18.14300292]
[1730675727647,0.12549,162.75,162.72,18.14300292]
[1730675727837,6.1428,162.79,162.74,18.14300292]
[1730675728147,6.1428,162.79,162.76,18.14300292]
[1730675729052,18.26849292,162.78,162.74,6.5248]
[1730675729265,18.26849292,162.78,162.72,18.14300292]
[1730675730264,6.1428,162.79,162.75,18.14300292]
[1730675730560,6.1428,162.79,162.74,18.14300292]
[1730675730741,0.12549,162.78,162.74,18.14300292]
[1730675730942,0.12549,162.78,162.73,18.14300292]
[1730675731572,0.12549,162.78,162.72,21.5093]
[1730675731573,6.1436,162.77,162.75,18.14300292]
[1730675731744,6.1436,162.77,162.74,18.14300292]
[1730675733170,24.28580292,162.79,162.73,24.28800292]
[1730675733355,18.14300292,162.78,162.73,6.145]
[1730675734148,24.41129292,162.79,162.73,24.28800292]
[1730675734649,0.12549,162.77,162.72,33.50680292]
[1730675734856,18.14300292,162.75,162.7,22.2762]
[1730675735046,18.14300292,162.77,162.71,18.14300292]
[1730675735254,18.14300292,162.76,162.7,61.93100292]
[1730675735451,18.26849292,162.75,162.7,22.2762]
[1730675735857,18.14300292,162.74,162.7,22.2762]
[1730675736048,24.28810292,162.73,162.68,18.14300292]
[1730675736271,18.26849292,162.72,162.66,43.7926]
[1730675736481,18.26849292,162.72,162.66,61.93560292]
[1730675736656,18.26849292,162.72,162.67,18.14300292]
[1730675737049,0.12549,162.72,162.68,18.14300292]
[1730675737270,76.0605,162.78,162.69,18.14300292]
[1730675737271,38.14300292,162.75,162.69,18.14300292]
[1730675737471,18.14300292,162.73,162.68,24.28990292]
[1730675737671,18.14300292,162.73,162.68,6.1469]
[1730675738358,24.28810292,162.73,162.68,6.1469]
[1730675739074,18.14300292,162.74,162.68,24.28990292]
[1730675739377,24.28770292,162.74,162.68,39.65740292]
[1730675740678,6.1447,162.74,162.7,18.14300292]
[1730675740980,18.14300292,162.77,162.71,18.14300292]
[1730675741180,18.14300292,162.78,162.72,18.14300292]
[1730675741417,18.14300292,162.76,162.7,18.14300292]
[1730675742264,18.14300292,162.77,162.71,18.14300292]
[1730675742456,6.1441,162.76,162.71,18.14300292]
[1730675744563,18.14300292,162.75,162.69,33.50960292]
[1730675744766,18.14300292,162.74,162.69,15.3666]
[1730675745058,18.26849292,162.75,162.69,33.50960292]
[1730675745670,18.26849292,162.75,162.69,39.65620292]
[1730675746266,0.12549,162.75,162.7,18.14300292]
[1730675746479,6.1447,162.74,162.7,18.14300292]
[1730675747088,24.28770292,162.74,162.69,15.3666]
[1730675747283,17.76029893,162.74,162.69,15.3666]
[1730675747782,6.1447,162.74,162.69,26.98219893]
[1730675747986,6.1447,162.74,162.69,15.3666]
[1730675748286,17.76029893,162.74,162.69,15.3666]
[1730675748991,6.1447,162.74,162.69,33.12879893]
[1730675749192,0.12549,162.73,162.68,11.61559893]
[1730675749383,11.74108893,162.73,162.67,17.76269893]
[1730675749586,11.74108893,162.73,162.67,11.61559893]
[1730675749886,17.76029893,162.74,162.68,11.61559893]
[1730675750088,6.1447,162.74,162.69,11.61559893]
[1730675750505,6.26989,162.75,162.69,11.61559893]
[1730675751183,6.26989,162.75,162.69,17.76189893]
[1730675751384,11.61559893,162.73,162.69,6.1463]
[1730675751893,11.61559893,162.72,162.68,21.5139]
[1730675752194,11.61559893,162.73,162.68,21.5139]
[1730675752376,11.61559893,162.74,162.68,33.12949893]
[1730675753968,6.1451,162.73,162.68,33.12949893]
[1730675755086,11.61559893,162.76,162.7,11.61559893]
[1730675755291,11.61559893,162.77,162.71,11.61559893]
[1730675755590,11.61559893,162.75,162.7,11.61559893]
[1730675756381,11.61559893,162.76,162.71,6.1459]
[1730675756775,17.75919893,162.77,162.71,17.76149893]
[1730675756991,6.1436,162.77,162.72,11.61559893]
[1730675758481,6.1436,162.77,162.72,17.76089893]
[1730675758994,17.75919893,162.77,162.72,17.76089893]
[1730675760578,11.61559893,162.75,162.69,11.61559893]
[1730675760894,11.61559893,162.76,162.7,11.61559893]
[1730675761204,17.75919893,162.77,162.72,11.61559893]
[1730675762186,17.75919893,162.77,162.71,17.76109893]
[1730675763173,17.75919893,162.77,162.71,33.12579893]
[1730675763919,11.61559893,162.73,162.68,15.3672]
[1730675764100,11.61559893,162.71,162.66,28.4238]
[1730675764401,11.61559893,162.71,162.67,1.95657904]
[1730675764402,17.76169893,162.71,162.67,1.95657904]
[1730675764570,6.1461,162.71,162.67,1.95657904]
[1730675765199,6.1461,162.71,162.67,13.57217797]
[1730675765398,18.15372401,162.73,162.68,1.95657904]
[1730675765581,6.1456,162.72,162.68,1.95657904]
[1730675766195,18.15372401,162.73,162.68,20.11030305]
[1730675766383,24.29802401,162.75,162.7,18.15372401]
[1730675766586,6.1443,162.75,162.7,18.15372401]
[1730675766994,24.29802401,162.75,162.7,18.15372401]
[1730675767202,18.15372401,162.73,162.68,39.66792401]
[1730675767497,18.15372401,162.72,162.69,1.96251641]
[1730675767702,18.15372401,162.72,162.68,15.3675]
[1730675767874,18.15372401,162.72,162.69,1.96251097]
[1730675768080,18.15372401,162.72,162.68,15.3675]
[1730675768280,24.29892401,162.73,162.69,1.96248204]
[1730675768600,24.29892401,162.73,162.7,1.96248204]
[1730675768782,24.29892401,162.73,162.68,39.66822401]
[1730675768982,24.29892401,162.73,162.69,1.96338505]
[1730675769185,24.29892401,162.73,162.7,1.96338505]
[1730675769405,24.29892401,162.73,162.68,39.66822401]
[1730675769705,0.12549,162.74,162.69,20.11777409]
[1730675770002,0.12549,162.74,162.7,1.96405008]
[1730675770202,0.12549,162.74,162.69,18.15372401]
[1730675770377,18.27921401,162.74,162.7,1.96406109]
[1730675770698,18.27921401,162.74,162.68,39.66822401]
[1730675770898,6.1451,162.73,162.69,1.96494506]
[1730675771206,24.29882401,162.73,162.7,1.96495699]
[1730675771510,6.1451,162.73,162.68,39.66822401]
[1730675771705,6.1451,162.73,162.69,1.96492255]
[1730675771883,6.1451,162.73,162.7,1.96492255]
[1730675772083,6.1451,162.73,162.68,39.66822401]
[1730675772407,6.1451,162.73,162.69,1.96489736]
[1730675772706,6.1451,162.73,162.7,1.96489736]
[1730675772925,15.2112,162.7,162.58,5.90021193]
[1730675773084,21.2916455,162.68,162.59,1.96703525]
[1730675773404,20.22549,162.64,162.53,6.1525]
[1730675773616,0.12549,162.61,162.54,1.96292165]
[1730675773918,0.12549,162.61,162.51,0.3182166]
[1730675773919,0.1,162.6,162.55,1.96292165]
[1730675774116,18.15372401,162.56,162.52,1.96404836]
[1730675774280,18.15372401,162.53,162.51,0.3182166]
[1730675774486,0.12549,162.55,162.52,1.96376638]
[1730675774786,6.1523,162.54,162.51,0.3182166]
[1730675774995,18.15372401,162.52,162.51,0.3182166]
[1730675775284,18.15372401,162.57,162.51,18.47194061]
[1730675775499,18.15372401,162.58,162.51,24.62504061]
[1730675775809,18.15372401,162.55,162.51,0.3182166]
[1730675776220,18.15372401,162.57,162.51,6.4716166]
[1730675776881,18.15372401,162.56,162.51,6.4716166]
[1730675777299,18.15372401,162.55,162.51,6.4716166]
[1730675777610,18.15372401,162.56,162.51,6.4716166]
[1730675777785,18.15372401,162.58,162.52,18.15372401]
[1730675778197,18.15372401,162.58,162.51,21.8552166]
[1730675778198,18.15372401,162.57,162.51,40.00894061]
[1730675780295,18.15372401,162.56,162.51,21.8552166]
[1730675780898,18.15372401,162.57,162.51,40.00894061]
[1730675782188,18.15372401,162.58,162.52,18.15372401]
[1730675782806,18.15372401,162.57,162.51,40.00894061]
[1730675783703,18.15372401,162.56,162.51,21.8552166]
[1730675784514,18.15372401,162.57,162.51,40.00894061]
[1730675785008,24.30462401,162.58,162.52,18.15372401]
[1730675785195,18.15372401,162.58,162.52,18.15372401]
[1730675785400,18.15372401,162.6,162.54,18.15372401]
[1730675785591,18.15372401,162.64,162.58,18.15372401]
[1730675785795,18.15372401,162.63,162.57,18.15372401]
[1730675786294,18.15372401,162.62,162.57,18.15372401]
[1730675786494,18.15372401,162.63,162.57,18.15372401]
[1730675786697,18.15372401,162.61,162.57,6.1511]
[1730675787914,18.15372401,162.59,162.56,6.185]
[1730675788410,18.15372401,162.6,162.56,6.185]
[1730675788807,18.15372401,162.61,162.56,6.185]
[1730675789008,18.15372401,162.61,162.56,30.49022401]
[1730675790014,18.15372401,162.61,162.56,12.3365]
[1730675790214,18.15372401,162.6,162.55,15.5871]
[1730675790393,18.15372401,162.6,162.55,21.739]
[1730675790715,18.15372401,162.61,162.55,39.89272401]
[1730675791013,18.15372401,162.6,162.55,21.739]
[1730675791198,18.15372401,162.59,162.55,21.739]
[1730675791594,18.15372401,162.6,162.55,21.739]
[1730675791903,18.15372401,162.62,162.56,18.15372401]
[1730675792105,18.15372401,162.63,162.58,18.15372401]
[1730675792302,18.15372401,162.64,162.58,18.15372401]
[1730675793117,18.15372401,162.64,162.59,6.1504]
[1730675793312,18.15372401,162.63,162.59,6.1504]
[1730675793998,18.15372401,162.64,162.59,6.1504]
[1730675794197,30.6608,162.7,162.59,6.1504]
[1730675794198,24.30162401,162.66,162.6,18.15372401]
[1730675794705,18.15372401,162.65,162.59,39.68012401]
[1730675795215,18.15372401,162.64,162.59,21.5264]
[1730675795418,18.15372401,162.61,162.56,18.15372401]
[1730675795810,18.15372401,162.62,162.57,18.15372401]
[1730675796920,18.15372401,162.62,162.57,24.30452401]
[1730675797603,18.15372401,162.64,162.58,18.15372401]
[1730675797801,24.30192401,162.65,162.59,18.15372401]
[1730675798004,18.15372401,162.64,162.59,18.15372401]
[1730675798205,18.15372401,162.63,162.58,18.15372401]
[1730675798417,18.15372401,162.63,162.57,39.68242401]
[1730675798924,18.15372401,162.62,162.57,21.5287]
[1730675799214,18.15372401,162.61,162.57,21.5287]
[1730675799518,6.1482,162.65,162.55,40.13693226]
[1730675799519,18.15372401,162.6,162.56,21.5304]
[1730675799716,18.15372401,162.59,162.55,28.13510825]
[1730675800919,18.15372401,162.58,162.55,21.98320825]
[1730675801118,18.15372401,162.58,162.55,15.5871]
[1730675801437,18.15372401,162.59,162.55,15.5871]
[1730675801610,18.15372401,162.59,162.55,21.739]
[1730675802536,18.15372401,162.61,162.55,55.27252401]
[1730675802814,18.15372401,162.6,162.55,37.1188]
[1730675804518,18.15372401,162.58,162.55,30.9669]
[1730675804725,18.15372401,162.56,162.53,6.1527]
[1730675806504,18.15372401,162.55,162.52,34.1182567]
[1730675806915,18.15372401,162.57,162.52,34.1182567]
[1730675808229,18.15372401,162.56,162.53,1.94192672]
[1730675808527,18.15372401,162.57,162.53,1.94192672]
[1730675808915,18.15372401,162.58,162.53,1.94192672]
[1730675809328,18.15372401,162.58,162.54,1.94192672]
[1730675809626,18.15372401,162.58,162.54,8.09422672]
[1730675809804,18.15372401,162.58,162.54,6.1523]
[1730675810005,18.15372401,162.58,162.54,8.09422672]
[1730675810302,18.15372401,162.56,162.53,8.09442672]
[1730675810522,18.15372401,162.56,162.54,1.94192672]
[1730675811207,18.15372401,162.56,162.54,1.94631517]
[1730675812112,18.15372401,162.57,162.54,1.94631517]
[1730675813522,18.15372401,162.57,162.53,6.1525]
[1730675815423,18.15372401,162.54,162.52,15.3826]
[1730675815734,18.15372401,162.53,162.52,15.3826]
[1730675816024,18.15372401,162.53,162.51,0.3182166]
[1730675816228,18.15372401,162.52,162.51,0.3182166]
[1730675817725,18.15372401,162.53,162.51,0.3182166]
[1730675817908,18.15372401,162.57,162.51,40.00894061]
[1730675818108,18.15372401,162.56,162.51,21.8552166]
[1730675818307,18.15372401,162.56,162.51,40.00894061]
[1730675818530,18.15372401,162.57,162.51,40.00894061]
[1730675818737,18.15372401,162.56,162.51,21.8552166]
[1730675819030,18.15372401,162.55,162.51,21.8552166]
[1730675820724,0.12549,162.58,162.51,15.7018166]
[1730675820924,18.15372401,162.52,162.51,0.3182166]
[1730675821928,18.15372401,162.53,162.51,0.3182166]
[1730675822140,24.30552401,162.56,162.51,0.3182166]
[1730675822316,18.15372401,162.53,162.51,0.3182166]
[1730675822516,18.15372401,162.54,162.51,0.3182166]
[1730675823334,18.15372401,162.53,162.51,0.3182166]
[1730675823536,18.15372401,162.54,162.51,0.3182166]
[1730675823729,18.15372401,162.56,162.51,0.3182166]
[1730675824036,18.15372401,162.55,162.51,6.4716166]
[1730675824630,18.15372401,162.54,162.51,6.4716166]
[1730675825013,18.15372401,162.54,162.51,0.3182166]
[1730675825315,18.15372401,162.53,162.51,0.3182166]
[1730675827630,24.30622401,162.54,162.51,0.3182166]
[1730675828960,18.15372401,162.57,162.51,40.00884061]
[1730675829323,18.15372401,162.55,162.51,21.8551166]
[1730675829539,18.15372401,162.54,162.51,21.8551166]
[1730675830547,18.15372401,162.55,162.51,21.8551166]
[1730675832433,18.15372401,162.56,162.51,21.8551166]
[1730675833751,18.15372401,162.54,162.51,21.8551166]
[1730675834054,18.15372401,162.53,162.51,0.3182166]
[1730675835034,18.15372401,162.52,162.51,0.3182166]
[1730675835634,24.30642401,162.53,162.51,0.3182166]
[1730675838555,18.15372401,162.52,162.51,0.3182166]
[1730675843341,11.64503917,162.52,162.51,0.3182166]
[1730675844642,11.64503917,162.53,162.51,0.3182166]
[1730675844968,17.79613917,162.57,162.51,18.11655577]
[1730675845137,11.64503917,162.56,162.51,6.4715166]
[1730675845865,11.64503917,162.54,162.51,15.7018166]
[1730675846049,11.64503917,162.55,162.51,15.7018166]
[1730675846965,11.64503917,162.56,162.51,21.8552166]
[1730675847269,11.64503917,162.54,162.51,15.7018166]
[1730675847562,11.64503917,162.53,162.51,0.3182166]
[1730675847970,11.64503917,162.54,162.51,0.3182166]
[1730675849147,91.65059,162.6,162.51,0.3182166]
[1730675849148,11.64503917,162.52,162.51,0.3182166]
[1730675850278,17.79803917,162.52,162.51,0.3182166]
[1730675852065,17.92352917,162.52,162.51,0.3182166]
[1730675852357,20.12549,162.49,162.44,6.39973106]
[1730675852664,11.64503917,162.48,162.43,0.3182166]
[1730675853063,0.12549,162.47,162.43,0.3182166]
[1730675853364,18.21672118,162.44,162.43,0.3182166]
[1730675861651,24.37282118,162.44,162.43,0.3182166]
[1730675863766,44.49831118,162.44,162.43,0.3182166]
[1730675864777,68.27519518,162.44,162.43,0.3182166]
[1730675867072,68.27519518,162.44,162.35,37.1708166]
[1730675867073,0.12549,162.43,162.35,37.1708166]
[1730675867273,86.49191636,162.44,162.35,37.1708166]
[1730675867274,18.21672118,162.37,162.35,37.1708166]
[1730675867577,49.932984,162.44,162.35,37.1708166]
[1730675867578,18.21672118,162.38,162.35,37.1708166]
[1730675867962,18.21672118,162.4,162.35,37.1708166]
[1730675868161,18.21672118,162.39,162.35,37.1708166]
[1730675868567,18.21672118,162.4,162.35,37.1708166]
[1730675868996,6.1569,162.42,162.35,37.1708166]
[1730675868997,18.21672118,162.39,162.35,37.1708166]
[1730675869178,18.21672118,162.39,162.35,36.6708166]
[1730675870768,18.21672118,162.42,162.36,18.21672118]
[1730675871071,18.21672118,162.42,162.37,18.21672118]
[1730675871270,18.21672118,162.41,162.36,18.21672118]
[1730675871574,18.21672118,162.43,162.38,18.21672118]
[1730675871771,18.21672118,162.43,162.37,18.21672118]
[1730675871979,18.21672118,162.4,162.35,67.4684166]
[1730675872160,18.21672118,162.41,162.36,18.31672118]
[1730675872468,18.21672118,162.44,162.39,18.21672118]
[1730675873067,18.21672118,162.44,162.38,64.40452118]
[1730675873375,18.21672118,162.44,162.39,18.21672118]
[1730675874291,18.21672118,162.44,162.4,21.5516]
[1730675875181,18.21672118,162.45,162.4,39.76832118]
[1730675875580,18.21672118,162.48,162.42,34.24142118]
[1730675876376,18.21672118,162.47,162.43,6.1564]
[1730675877258,11.65185406,162.47,162.43,6.1564]
[1730675877878,11.65185406,162.47,162.43,21.5476]
[1730675878084,11.65185406,162.49,162.43,33.19945406]
[1730675878379,11.65185406,162.48,162.43,33.19945406]
[1730675878684,11.65185406,162.48,162.43,21.5476]
[1730675879261,0.12549,162.53,162.43,21.5476]
[1730675879466,18.20461775,162.48,162.43,21.5476]
[1730675879984,18.20461775,162.48,162.43,39.75221775]
[1730675880365,18.20461775,162.46,162.43,21.5476]
[1730675880569,18.20461775,162.47,162.43,21.5476]
[1730675881163,18.20461775,162.48,162.43,21.5476]
[1730675882385,18.20461775,162.47,162.43,21.5476]
[1730675882590,18.20461775,162.48,162.43,21.5476]
[1730675884001,18.20461775,162.46,162.43,21.5476]
[1730675884178,18.20461775,162.47,162.43,21.5476]
[1730675887986,18.20461775,162.46,162.43,15.3912]
[1730675888188,18.20461775,162.45,162.42,6.1567]
[1730675888491,18.20461775,162.43,162.38,16.6234]
[1730675888691,18.20461775,162.4,162.37,15.3964]
[1730675888873,18.20461775,162.41,162.37,15.3964]
[1730675889075,18.20461775,162.42,162.37,15.3964]
[1730675889894,18.20461775,162.42,162.37,21.5548]
[1730675890489,24.36151775,162.42,162.37,21.5548]
[1730675891796,18.20461775,162.4,162.36,12.5081]
[1730675892091,18.20461775,162.4,162.36,6.159]
[1730675892297,18.20461775,162.39,162.35,12.55866053]
[1730675892591,18.20461775,162.39,162.35,21.558]
[1730675894786,18.20461775,162.4,162.35,21.558]
[1730675895171,18.20461775,162.38,162.35,21.558]
[1730675895899,18.20461775,162.39,162.35,21.558]
[1730675896477,18.20461775,162.4,162.35,21.558]
[1730675896804,76.4062,162.47,162.36,18.20461775]
[1730675897100,18.20461775,162.43,162.37,18.20461775]
[1730675897473,18.20461775,162.42,162.37,18.20461775]
[1730675897673,18.20461775,162.42,162.36,18.20461775]
[1730675898777,18.20461775,162.41,162.37,21.5556]
[1730675899516,11.66060097,162.41,162.37,21.5556]
[1730675899808,11.66060097,162.42,162.37,21.5556]
[1730675900303,11.66060097,162.41,162.37,21.5556]
[1730675901481,11.66060097,162.42,162.37,21.5556]
[1730675901805,11.66060097,162.42,162.37,33.21620097]
[1730675902396,11.66060097,162.42,162.37,21.5556]
[1730675904491,11.66060097,162.41,162.37,21.5556]
[1730675904891,11.66060097,162.39,162.37,21.5556]
[1730675905603,11.66060097,162.4,162.37,21.5556]
[1730675905981,11.66060097,162.41,162.37,15.3969]
[1730675907404,11.66060097,162.41,162.35,11.66060097]
[1730675909512,11.66060097,162.41,162.36,21.5569]
[1730675909886,11.66060097,162.38,162.36,21.5569]
[1730675910186,11.66060097,162.37,162.33,21.5606]
[1730675910386,11.66060097,162.36,162.33,21.5606]
[1730675910713,11.66060097,162.38,162.33,33.22120097]
[1730675911005,11.66060097,162.38,162.33,21.5606]
[1730675911182,16.356,162.41,162.32,18.06092324]
[1730675911183,11.66060097,162.39,162.35,21.5583]
[1730675911383,11.66060097,162.38,162.35,21.5583]
[1730675912184,11.66060097,162.41,162.35,33.21890097]
[1730675912501,11.66060097,162.4,162.35,21.5583]
[1730675912702,11.66060097,162.39,162.35,21.5583]
[1730675912883,11.66060097,162.38,162.35,21.5583]
[1730675913308,11.66060097,162.38,162.35,15.3988]
[1730675913687,11.66060097,162.39,162.35,15.3988]
[1730675915001,11.66060097,162.4,162.35,15.3988]
[1730675916203,11.66060097,162.4,162.35,21.5583]
[1730675917804,11.66060097,162.36,162.32,12.56082227]
[1730675918112,11.66060097,162.36,162.32,6.1605]
[1730675918815,11.66060097,162.37,162.32,6.1605]
[1730675919513,11.66060097,162.37,162.32,21.5621]
[1730675920215,11.66060097,162.37,162.32,33.22270097]
[1730675921096,11.66060097,162.35,162.32,15.4016]
[1730675921407,11.66060097,162.34,162.32,15.4016]
[1730675921792,11.66060097,162.35,162.32,15.4016]
[1730675922415,11.66060097,162.36,162.32,15.4016]
[1730675923912,11.66060097,162.39,162.33,11.66060097]
[1730675924103,11.66060097,162.37,162.32,27.06220097]
[1730675925215,11.66060097,162.37,162.32,21.5622]
[1730675925615,11.66060097,162.38,162.32,33.22280097]
[1730675926811,11.66060097,162.37,162.32,21.5622]
[1730675927015,11.66060097,162.34,162.32,15.4016]
[1730675927310,11.66060097,162.34,162.29,21.5659]
[1730675927519,11.66060097,162.34,162.29,39.62804411]
[1730675927993,11.66060097,162.34,162.29,27.96744314]
[1730675928192,11.66060097,162.34,162.29,39.62804411]
[1730675928814,11.66060097,162.33,162.29,27.96744314]
[1730675928992,11.66060097,162.32,162.29,27.96744314]
[1730675929192,11.66060097,162.3,162.29,15.4041]
[1730675929402,11.66060097,162.3,162.27,22.2364]
[1730675930300,11.66060097,162.29,162.27,6.1624]
[1730675930516,11.66060097,162.29,162.27,21.5688]
[1730675930717,11.66060097,162.3,162.27,21.5688]
[1730675930922,11.66060097,162.29,162.27,21.5688]
[1730675931107,11.66060097,162.28,162.27,15.4064]
[1730675931307,11.66060097,162.28,162.26,0.3182166]
[1730675931510,11.66060097,162.27,162.26,0.3182166]
[1730675932331,17.94859097,162.27,162.26,0.3182166]
[1730675933116,37.94859097,162.27,162.26,0.3182166]
[1730675933331,44.55142808,162.27,162.26,0.3182166]
[1730675940025,43.902374,162.26,162.18,0.3182166]
[1730675940199,18.26343808,162.19,162.18,0.3182166]
[1730675942028,18.26343808,162.2,162.18,0.3182166]
[1730675942229,18.26343808,162.19,162.18,0.3182166]
[1730675942528,18.26343808,162.2,162.18,0.3182166]
[1730675942714,18.26343808,162.19,162.18,0.3182166]
[1730675943829,24.42903808,162.19,162.18,0.3182166]
[1730675946326,24.55452808,162.19,162.18,0.3182166]
[1730675948828,24.42903808,162.19,162.18,0.3182166]
[1730675949135,24.55452808,162.19,162.18,0.3182166]
[1730675949321,44.55452808,162.19,162.18,0.3182166]
[1730675950111,44.42903808,162.19,162.18,0.3182166]
[1730675950325,24.42903808,162.19,162.18,0.3182166]
[1730675954534,18.26343808,162.19,162.18,0.3182166]
[1730675955035,18.38892808,162.19,162.18,0.3182166]
[1730675956632,24.55452808,162.19,162.18,0.3182166]
[1730675957339,17.98998883,162.19,162.18,0.3182166]
[1730675958136,20.12549,162.18,162.1,15.7404166]
[1730675958339,11.69889883,162.12,162.1,15.7404166]
[1730675958844,11.69889883,162.13,162.1,15.7404166]
[1730675959013,11.69889883,162.13,162.1,0.3182166]
[1730675959218,11.69889883,162.12,162.1,0.3182166]
[1730675960333,11.69889883,162.13,162.1,0.3182166]
[1730675960641,11.69889883,162.14,162.1,6.4869166]
[1730675961340,20.0,162.18,162.1,6.4869166]
[1730675961341,11.69889883,162.13,162.1,6.4869166]
[1730675961750,11.69889883,162.14,162.1,6.4869166]
[1730675964343,11.69889883,162.12,162.1,6.4869166]
[1730675964844,6.1663,162.17,162.1,6.4869166]
[1730675964845,11.69889883,162.13,162.1,6.4869166]
[1730675966251,11.69889883,162.12,162.1,6.4869166]
[1730675966566,11.69889883,162.12,162.1,0.3182166]
[1730675966745,11.69889883,162.16,162.11,11.69889883]
[1730675966950,11.69889883,162.14,162.1,21.9097166]
[1730675967648,17.86619883,162.15,162.1,21.9097166]
[1730675968051,11.69889883,162.14,162.1,21.9097166]
[1730675968944,11.69889883,162.15,162.1,33.60861543]
[1730675969137,11.69889883,162.15,162.1,21.9097166]
[1730675969355,11.69889883,162.13,162.1,0.3182166]
[1730675969563,11.69889883,162.14,162.1,0.3182166]
[1730675970828,11.69889883,162.13,162.1,0.3182166]
[1730675972359,17.86679883,162.13,162.1,0.3182166]
[1730675972759,11.69889883,162.15,162.1,18.18581543]
[1730675973131,11.69889883,162.14,162.1,6.4869166]
[1730675973862,11.69889883,162.14,162.1,0.3182166]
[1730675974037,11.69889883,162.13,162.1,0.3182166]
[1730675974241,11.69889883,162.12,162.1,0.3182166]
[1730675974746,17.86659883,162.14,162.1,0.3182166]